bitfinex/quotes_SOLUSD_20250721
["timestamp","ask_amount","ask_price","bid_price","bid_amount"]
[1753110545934,8.312,197.44,197.41,20.69189514]
[1753110546100,8.312,197.44,197.42,20.69189514]
[1753110546408,40.2,197.47,197.43,20.69189514]
[1753110546719,16.78468397,197.46,197.42,20.69189514]
[1753110546902,40.2,197.47,197.44,20.69189514]
[1753110547101,20.69189514,197.56,197.45,26.0]
[1753110547422,20.69189514,197.57,197.51,20.69189514]
[1753110547595,20.69189514,197.56,197.5,20.69189514]
[1753110547795,20.69189514,197.56,197.45,0.69]
[1753110547995,20.69189514,197.56,197.5,20.69189514]
[1753110548200,20.69189514,197.58,197.52,20.69189514]
[1753110548527,8.2261,197.61,197.52,0.69]
[1753110548528,0.1,197.61,197.52,0.69]
[1753110549231,0.1,197.61,197.58,20.69189514]
[1753110549411,0.1,197.61,197.58,21.38189514]
[1753110549796,0.1,197.61,197.53,0.50625221]
[1753110550023,0.1,197.61,197.57,20.69189514]
[1753110550223,16.88468397,197.61,197.56,20.69189514]
[1753110550530,0.1,197.61,197.57,20.69189514]
[1753110550710,0.1,197.61,197.59,20.69189514]
[1753110550899,0.1,197.61,197.57,0.69]
[1753110550900,0.1,197.61,197.58,20.69189514]
[1753110551100,0.1,197.61,197.58,0.69]
[1753110551312,0.1,197.61,197.58,20.69189514]
[1753110551503,0.1,197.61,197.54,5.06213541]
[1753110551504,16.78468397,197.6,197.54,5.06213541]
[1753110551705,20.79189514,197.61,197.54,5.06213541]
[1753110551706,16.88468397,197.61,197.57,20.69189514]
[1753110552018,0.1,197.61,197.54,5.06213541]
[1753110552224,0.1,197.61,197.52,12.65677318]
[1753110552225,0.1,197.61,197.56,20.69189514]
[1753110552532,0.1,197.61,197.58,20.69189514]
[1753110552839,0.06,197.65,197.6,20.69189514]
[1753110553131,1e-08,197.65,197.64,20.69189514]
[1753110553299,55.77029056,197.7,197.64,21.19786559]
[1753110553629,55.77029056,197.7,197.69,2.62e-06]
[1753110553824,55.77029056,197.7,197.69,2.61e-06]
[1753110554134,55.77029056,197.7,197.69,2.62e-06]
[1753110554520,54.47245455,197.7,197.69,2.62e-06]
[1753110554905,54.47245455,197.7,197.65,40.38]
[1753110554906,54.42054111,197.7,197.63,5.05996053]
[1753110555117,28.65015055,197.7,197.69,20.69189514]
[1753110555304,45.43483452,197.7,197.69,20.69189514]
[1753110555704,28.65015055,197.7,197.69,20.69189514]
[1753110556012,28.65015055,197.7,197.63,5.56595658]
[1753110556213,16.78468397,197.69,197.65,0.69]
[1753110556421,16.78468397,197.69,197.68,20.69189514]
[1753110556919,28.65015055,197.7,197.68,21.38189514]
[1753110557229,16.78468397,197.69,197.63,5.05996053]
[1753110557723,16.78468397,197.69,197.64,20.69189514]
[1753110557928,17.50468397,197.69,197.64,20.69189514]
[1753110558100,37.47657911,197.65,197.53,1.19625221]
[1753110558302,16.78468397,197.63,197.58,20.69189514]
[1753110558601,16.78468397,197.63,197.59,20.69189514]
[1753110558814,37.47657911,197.66,197.57,0.69]
[1753110559014,16.78468397,197.66,197.62,20.69189514]
[1753110559424,16.78468397,197.69,197.62,0.69]
[1753110559721,16.78468397,197.69,197.57,0.50614971]
[1753110559920,16.78468397,197.69,197.61,20.69189514]
[1753110559921,16.78468397,197.66,197.61,20.69189514]
[1753110560501,16.78468397,197.65,197.57,0.69]
[1753110560699,16.78468397,197.6,197.53,0.69]
[1753110560919,16.78468397,197.59,197.54,20.69189514]
[1753110561104,16.78468397,197.6,197.56,20.69189514]
[1753110561297,16.78468397,197.62,197.55,0.69]
[1753110561530,20.69189514,197.57,197.45,1.19645733]
[1753110561732,16.78468397,197.56,197.5,20.69189514]
[1753110562019,20.69189514,197.57,197.45,41.07]
[1753110562020,16.78468397,197.53,197.45,41.07]
[1753110562227,5.05976888,197.64,197.52,20.69189514]
[1753110562397,16.78468397,197.61,197.57,20.69189514]
[1753110562600,0.72,197.6,197.55,20.69189514]
[1753110562802,37.47657911,197.61,197.52,0.69]
[1753110563029,16.78468397,197.61,197.55,20.69189514]
[1753110563213,16.78468397,197.55,197.5,20.69189514]
[1753110563724,16.78468397,197.56,197.48,0.69]
[1753110563903,40.4,197.61,197.49,20.69189514]
[1753110563904,16.78468397,197.54,197.49,20.69189514]
[1753110564421,16.78468397,197.55,197.51,20.69189514]
[1753110564631,16.78468397,197.55,197.52,20.69189514]
[1753110564814,16.78468397,197.58,197.52,20.69189514]
[1753110565215,16.78468397,197.6,197.55,20.69189514]
[1753110565618,16.78468397,197.61,197.56,20.69189514]
[1753110565808,17.50468397,197.61,197.56,20.69189514]
[1753110566016,16.78468397,197.62,197.57,20.69189514]
[1753110566206,38.19657911,197.62,197.56,20.69189514]
[1753110566420,20.69189514,197.63,197.57,20.69189514]
[1753110566623,37.47657911,197.64,197.58,20.69189514]
[1753110566808,8.2359,197.65,197.55,0.50620096]
[1753110567013,20.69189514,197.62,197.55,20.69189514]
[1753110567214,16.78468397,197.61,197.56,15.57686175]
[1753110567409,16.78468397,197.61,197.57,15.57686175]
[1753110567723,0.72,197.83,197.6,15.57686175]
[1753110568026,8.0064,197.86,197.64,26.0]
[1753110568027,0.72,197.76,197.64,26.0]
[1753110568329,0.72,197.76,197.69,15.57686175]
[1753110568628,15.57686175,197.75,197.68,15.57686175]
[1753110568821,32.36154572,197.72,197.62,41.0]
[1753110569021,16.78468397,197.68,197.63,15.57686175]
[1753110569323,37.41539514,197.68,197.62,20.63071117]
[1753110569509,37.41539514,197.68,197.61,20.63071117]
[1753110570314,37.41539514,197.68,197.53,0.35]
[1753110570315,37.41539514,197.66,197.53,0.35]
[1753110570515,20.63071117,197.65,197.59,20.63071117]
[1753110570920,16.78468397,197.66,197.59,20.63071117]
[1753110571122,37.41539514,197.66,197.59,20.63071117]
[1753110571527,16.78468397,197.63,197.58,20.63071117]
[1753110571732,16.78468397,197.61,197.5,40.92]
[1753110572004,16.78468397,197.61,197.49,0.35]
[1753110572005,16.78468397,197.59,197.55,20.63071117]
[1753110572210,16.78468397,197.59,197.56,20.63071117]
[1753110572439,16.78468397,197.63,197.58,20.63071117]
[1753110572612,16.78468397,197.63,197.62,20.63071117]
[1753110572813,16.78468397,197.67,197.62,20.63071117]
[1753110573119,40.88,197.69,197.63,20.63071117]
[1753110573432,16.78468397,197.68,197.63,20.63071117]
[1753110573642,16.78468397,197.68,197.65,20.63071117]
[1753110573820,28.65015055,197.7,197.67,20.63071117]
[1753110574011,28.30015055,197.7,197.68,26.35]
[1753110574217,28.30015055,197.7,197.69,21.13655365]
[1753110574622,0.68,197.87,197.69,21.13655365]
[1753110574825,7.8258,197.92,197.69,21.13655365]
[1753110574826,0.06,197.78,197.73,20.63071117]
[1753110575039,0.06,197.78,197.76,26.0]
[1753110575223,11.8462,197.78,197.66,10.0]
[1753110575431,20.63071117,197.71,197.62,0.71]
[1753110575635,16.78468397,197.76,197.7,20.63071117]
[1753110575821,16.78468397,197.76,197.72,20.63071117]
[1753110576023,11.8462,197.78,197.74,20.63071117]
[1753110576228,20.63071117,197.76,197.69,20.63071117]
[1753110576421,16.78468397,197.76,197.71,20.63071117]
[1753110576620,11.8462,197.78,197.68,0.31588271]
[1753110576621,11.8462,197.78,197.74,20.63071117]
[1753110576817,16.78468397,197.77,197.75,20.63071117]
[1753110577013,16.78468397,197.77,197.72,0.31581881]
[1753110577014,37.47539514,197.78,197.72,0.31581881]
[1753110577230,16.78468397,197.75,197.72,0.31581881]
[1753110577413,11.84468397,197.78,197.72,0.31581881]
[1753110577619,0.68,197.74,197.72,0.31581881]
[1753110577836,0.50563786,197.74,197.72,0.31581881]
[1753110578047,0.50563786,197.76,197.72,0.31581881]
[1753110578224,0.50563786,197.77,197.73,20.63071117]
[1753110578423,0.50563786,197.77,197.72,0.31581881]
[1753110578424,20.69071117,197.74,197.72,0.31581881]
[1753110578627,20.69071117,197.74,197.6,0.71]
[1753110578628,12.0839,197.72,197.57,41.54]
[1753110578940,1.18563786,197.71,197.62,20.63071117]
[1753110579137,1.18563786,197.71,197.69,6.84583143]
[1753110579322,21.31071117,197.7,197.69,6.84583143]
[1753110579522,17.46468397,197.7,197.69,6.84583143]
[1753110580145,38.09539514,197.7,197.69,6.84583143]
[1753110580344,42.47356408,197.7,197.69,6.84583143]
[1753110580518,43.15356408,197.7,197.69,6.84583143]
[1753110580720,38.09539514,197.7,197.69,6.84583143]
[1753110580945,43.15356408,197.7,197.69,6.84583143]
[1753110581135,16.78468397,197.7,197.69,6.84583143]
[1753110581339,17.46468397,197.7,197.69,6.84583143]
[1753110581526,16.78468397,197.7,197.69,6.84583143]
[1753110581729,16.78468397,197.71,197.69,27.4765426]
[1753110582131,16.78468397,197.71,197.69,6.84583143]
[1753110582332,0.50563786,197.7,197.69,6.84583143]
[1753110582527,16.78468397,197.71,197.69,6.84583143]
[1753110582847,0.06,197.74,197.7,20.63071117]
[1753110583018,0.06,197.74,197.73,20.63071117]
[1753110583521,0.06,197.74,197.73,21.34071117]
[1753110583722,0.06,197.74,197.73,20.63071117]
[1753110583922,0.06,197.74,197.72,20.63071117]
[1753110584234,0.06,197.74,197.7,0.71]
[1753110584638,0.06,197.74,197.69,7.35167391]
[1753110584639,0.06,197.74,197.69,6.84583143]
[1753110584942,17.35032183,197.74,197.69,27.4765426]
[1753110585323,16.78468397,197.72,197.69,6.84583143]
[1753110585519,17.29032183,197.72,197.69,6.84583143]
[1753110585934,0.68,197.71,197.69,6.84583143]
[1753110586142,0.06,197.74,197.69,6.84583143]
[1753110586143,17.97032183,197.7,197.69,6.84583143]
[1753110586323,16.84468397,197.74,197.69,27.4765426]
[1753110586523,17.35032183,197.74,197.7,20.63071117]
[1753110586738,0.06,197.74,197.72,20.63071117]
[1753110587141,16.84468397,197.74,197.69,6.84583143]
[1753110587319,0.06,197.74,197.73,20.63071117]
[1753110588048,0.06,197.74,197.73,21.34071117]
[1753110588357,0.06,197.74,197.73,0.71]
[1753110588655,16.78468397,197.85,197.73,21.7183612]
[1753110588854,17.29032183,197.85,197.8,20.63071117]
[1753110589151,0.50563786,197.85,197.82,20.63071117]
[1753110589451,0.50563786,197.87,197.86,26.0]
[1753110589749,0.8857,197.97,197.86,21.79611903]
[1753110589927,0.8857,197.97,197.89,26.0]
[1753110590241,0.8857,197.97,197.9,0.5053057]
[1753110590644,0.50563786,197.96,197.92,20.63071117]
[1753110590832,0.50563786,197.96,197.86,0.66]
[1753110590833,17.46468397,197.95,197.86,0.66]
[1753110591041,16.78468397,197.93,197.91,20.63071117]
[1753110591233,16.78468397,197.93,197.85,41.36]
[1753110591234,0.8857,197.97,197.86,0.50540786]
[1753110591452,0.50563786,197.96,197.86,0.50540786]
[1753110591635,0.8857,197.97,197.95,20.63071117]
[1753110591835,0.8857,197.97,197.91,0.66]
[1753110592042,0.8857,197.97,197.89,0.50533124]
[1753110592347,0.8857,197.97,197.9,42.86203294]
[1753110592538,0.8857,197.97,197.96,20.63071117]
[1753110593353,0.8857,197.97,197.93,0.37300277]
[1753110593529,0.8857,197.97,197.95,20.63071117]
[1753110593849,16.78468397,197.95,197.93,0.37300277]
[1753110594047,1.18563786,197.94,197.93,0.37300277]
[1753110594237,16.78468397,197.94,197.93,0.37300277]
[1753110594632,17.46468397,197.94,197.93,0.37300277]
[1753110594832,23.0223578,197.94,197.93,0.37300277]
[1753110595033,17.97032183,197.94,197.93,0.37300277]
[1753110595231,38.601033,197.94,197.93,0.37300277]
[1753110595641,17.97032183,197.94,197.93,0.37300277]
[1753110595953,20.68738397,197.93,197.72,0.66]
[1753110596250,16.78468397,197.84,197.8,20.63071117]
[1753110596443,16.78468397,197.88,197.83,20.63071117]
[1753110596643,1.18563786,197.87,197.82,20.63071117]
[1753110596844,17.46468397,197.86,197.81,20.63071117]
[1753110597042,0.50563786,197.87,197.82,20.63071117]
[1753110597252,16.78468397,197.86,197.82,20.63071117]
[1753110597445,16.78468397,197.84,197.79,41.28]
[1753110597757,16.78468397,197.8,197.71,5.7179131]
[1753110598049,16.78468397,197.78,197.77,20.63071117]
[1753110598252,17.29032183,197.82,197.77,20.63071117]
[1753110598443,17.29032183,197.82,197.78,20.63071117]
[1753110598444,0.68,197.81,197.78,20.63071117]
[1753110598645,17.29032183,197.8,197.78,20.63071117]
[1753110598833,16.78468397,197.82,197.79,20.63071117]
[1753110599034,0.68,197.86,197.81,20.63071117]
[1753110599035,16.78468397,197.85,197.81,20.63071117]
[1753110599243,0.50563786,197.84,197.82,20.63071117]
[1753110599651,0.50563786,197.84,197.81,20.63071117]
[1753110599855,36.38,198.08,197.83,20.63071117]
[1753110599856,16.78468397,197.87,197.83,20.63071117]
[1753110600155,16.78468397,197.89,197.86,20.63071117]
[1753110600354,0.50563786,197.9,197.88,20.63071117]
[1753110600553,0.50563786,197.92,197.84,0.3936663]
[1753110600862,0.50563786,197.92,197.72,0.03]
[1753110600863,16.78468397,197.84,197.72,0.03]
[1753110601048,16.78468397,197.8,197.72,0.03]
[1753110601253,16.78468397,197.78,197.75,20.63071117]
[1753110601557,16.78468397,197.82,197.77,20.63071117]
[1753110601754,16.78468397,197.8,197.75,20.63071117]
[1753110601934,16.78468397,197.78,197.74,21.01651874]
[1753110602135,0.50563786,197.77,197.75,20.63071117]
[1753110602445,16.78468397,197.76,197.74,21.01651874]
[1753110602757,5.05576613,197.8,197.75,20.63071117]
[1753110602758,16.78468397,197.8,197.75,20.63071117]
[1753110603055,0.50563786,197.79,197.78,20.63071117]
[1753110603356,16.78468397,197.82,197.78,20.63071117]
[1753110603553,0.50563786,197.83,197.81,20.63071117]
[1753110603736,17.47468397,197.82,197.78,20.63071117]
[1753110603937,0.50563786,197.81,197.78,20.63071117]
[1753110604162,0.50563786,197.81,197.74,0.38580757]
[1753110604163,37.41539514,197.79,197.74,0.38580757]
[1753110604353,1.19563786,197.78,197.74,0.38580757]
[1753110604552,17.47468397,197.77,197.74,0.38580757]
[1753110604865,26.0,197.72,197.64,0.03]
[1753110605047,26.0,197.72,197.54,0.72]
[1753110605048,16.78468397,197.64,197.55,23.0]
[1753110605238,37.41539514,197.62,197.56,20.63071117]
[1753110605441,20.63071117,197.64,197.55,28.06193846]
[1753110605648,16.78468397,197.62,197.58,20.63071117]
[1753110605849,20.63071117,197.64,197.58,20.63071117]
[1753110605850,16.78468397,197.6,197.58,20.63071117]
[1753110606051,16.78468397,197.62,197.58,20.63071117]
[1753110606247,0.50563786,197.61,197.58,20.63071117]
[1753110606740,0.50563786,197.69,197.6,20.63071117]
[1753110607063,17.29032183,197.68,197.59,0.69]
[1753110607264,0.50563786,197.71,197.67,20.63071117]
[1753110607444,20.63071117,197.77,197.7,20.63071117]
[1753110607642,20.63071117,197.72,197.64,0.69]
[1753110607841,17.29032183,197.71,197.69,20.63071117]
[1753110608041,16.78468397,197.75,197.7,20.63071117]
[1753110608338,16.78468397,197.73,197.7,0.69]
[1753110608649,8.4719,197.81,197.64,67.90597045]
[1753110608650,16.78468397,197.71,197.67,5.05893661]
[1753110608863,16.78468397,197.74,197.7,20.63071117]
[1753110609162,17.29032183,197.73,197.72,20.63071117]
[1753110609394,17.29032183,197.73,197.68,0.69]
[1753110609395,17.29032183,197.73,197.71,20.63071117]
[1753110609541,17.29032183,197.73,197.7,20.63071117]
[1753110609740,17.29032183,197.73,197.71,20.63071117]
[1753110609941,16.78468397,197.73,197.72,20.63071117]
[1753110610390,16.78468397,197.75,197.72,20.63071117]
[1753110610551,16.78468397,197.79,197.74,20.63071117]
[1753110610866,16.78468397,197.79,197.68,0.50586806]
[1753110610867,0.50563786,197.79,197.78,20.63071117]
[1753110611051,17.29032183,197.83,197.75,5.74689001]
[1753110611252,0.50563786,197.83,197.8,20.63071117]
[1753110611455,0.50563786,197.85,197.8,20.63071117]
[1753110611650,0.50563786,197.85,197.81,20.63071117]
[1753110611857,16.78468397,197.84,197.76,41.32]
[1753110612049,16.78468397,197.84,197.82,20.63071117]
[1753110612254,16.78468397,197.84,197.77,0.69]
[1753110612255,16.78468397,197.86,197.77,0.69]
[1753110612477,3.9878,197.98,197.78,62.43632346]
[1753110612681,20.63071117,197.93,197.87,20.63071117]
[1753110612878,20.63071117,197.92,197.86,20.63071117]
[1753110613176,16.78468397,197.91,197.86,20.63071117]
[1753110613355,37.41539514,197.88,197.82,20.63071117]
[1753110613672,16.78468397,197.87,197.84,20.63071117]
[1753110613871,16.78468397,197.89,197.78,1.19561229]
[1753110614068,16.78468397,197.87,197.81,20.63071117]
[1753110614576,16.78468397,197.87,197.84,20.63071117]
[1753110614780,16.78468397,197.88,197.83,20.63071117]
[1753110614952,16.78468397,197.86,197.81,20.63071117]
[1753110615149,16.78468397,197.86,197.83,20.63071117]
[1753110615383,16.78468397,197.89,197.84,20.63071117]
[1753110615555,16.78468397,197.89,197.83,0.69]
[1753110615755,16.78468397,197.91,197.86,20.63071117]
[1753110616056,20.63071117,197.92,197.79,5.05586733]
[1753110616057,16.78468397,197.92,197.83,41.38]
[1753110616476,16.78468397,197.9,197.85,20.63071117]
[1753110616669,16.78468397,197.94,197.84,20.63071117]
[1753110616975,16.78468397,197.89,197.84,20.63071117]
[1753110617281,16.78468397,197.88,197.83,20.63071117]
[1753110617478,5.05229121,197.93,197.8,20.63071117]
[1753110617653,0.1,197.98,197.79,41.32]
[1753110617654,0.1,197.98,197.84,0.69]
[1753110617851,0.1,197.98,197.96,20.63071117]
[1753110618259,0.1,197.98,197.92,42.21]
[1753110618460,21.51641117,197.97,197.91,20.63071117]
[1753110618656,16.78468397,197.96,197.91,20.63071117]
[1753110619172,37.41539514,197.96,197.9,20.63071117]
[1753110619365,42.46697336,197.96,197.9,20.63071117]
[1753110619561,21.83626219,197.96,197.89,62.13071117]
[1753110619774,16.78468397,197.96,197.89,41.5]
[1753110619961,16.78468397,197.96,197.91,20.63071117]
[1753110620359,17.46468397,197.95,197.81,26.0]
[1753110620560,17.46468397,197.95,197.56,20.63071117]
[1753110620561,16.78468397,197.9,197.85,20.63071117]
[1753110620983,16.78468397,197.88,197.83,20.63071117]
[1753110621275,16.78468397,197.88,197.81,20.63071117]
[1753110621276,20.63071117,197.87,197.81,20.63071117]
[1753110621480,16.78468397,197.86,197.81,20.63071117]
[1753110621683,16.78468397,197.89,197.85,20.63071117]
[1753110621856,16.78468397,197.89,197.86,20.63071117]
[1753110622183,16.78468397,197.9,197.83,41.38]
[1753110622689,16.78468397,197.9,197.88,20.63071117]
[1753110622856,16.78468397,197.9,197.87,20.63071117]
[1753110623052,16.78468397,197.9,197.83,41.38]
[1753110623362,21.83784668,197.9,197.85,15.52716265]
[1753110623575,16.78468397,197.9,197.85,15.52716265]
[1753110623875,16.78468397,197.9,197.82,0.69]
[1753110623876,37.36493912,197.9,197.84,15.52716265]
[1753110624553,37.36493912,197.9,197.82,42.01]
[1753110624554,21.83777647,197.9,197.85,15.52716265]
[1753110624755,16.78468397,197.9,197.85,15.52716265]
[1753110624975,16.78468397,197.9,197.86,15.52716265]
[1753110625186,16.78468397,197.9,197.88,15.52716265]
[1753110625368,16.78468397,197.94,197.89,15.52716265]
[1753110625953,32.31184662,197.94,197.88,15.52716265]
[1753110626371,16.78468397,197.94,197.89,15.52716265]
[1753110626582,5.99718063,197.97,197.85,0.5054334]
[1753110626758,15.52716265,197.94,197.89,15.52716265]
[1753110627082,6.67718063,197.97,197.86,41.16]
[1753110627083,16.78468397,197.92,197.86,41.16]
[1753110627258,16.78468397,197.92,197.85,0.69]
[1753110627259,32.31184662,197.9,197.85,41.16]
[1753110627661,16.78468397,197.86,197.81,16.53486349]
[1753110627888,16.78468397,197.84,197.81,0.31770084]
[1753110628185,16.78468397,197.83,197.81,0.31770084]
[1753110628371,32.31184662,197.83,197.81,0.31770084]
[1753110628567,32.31184662,197.83,197.7,0.03]
[1753110628568,16.78468397,197.79,197.74,15.55716265]
[1753110628771,32.31184662,197.79,197.74,0.03]
[1753110629284,16.78468397,197.79,197.74,15.55716265]
[1753110629468,32.31184662,197.79,197.74,0.03]
[1753110629657,0.36,197.82,197.74,0.03]
[1753110629658,32.31184662,197.75,197.74,0.03]
[1753110630460,37.36873663,197.75,197.74,0.03]
[1753110630696,16.78468397,197.74,197.7,0.03]
[1753110630880,16.78468397,197.71,197.7,0.03]
[1753110631181,32.31184662,197.76,197.71,0.5]
[1753110631378,15.52716265,197.72,197.71,0.5]
[1753110631586,15.52716265,197.72,197.7,0.03]
[1753110631587,15.52716265,197.71,197.7,1e-08]
[1753110631768,15.52716265,197.71,197.6,15.52716265]
[1753110631769,16.78468397,197.7,197.6,15.52716265]
[1753110631971,16.78468397,197.7,197.65,15.52716265]
[1753110632288,16.78468397,197.7,197.66,15.52716265]
[1753110632463,16.78468397,197.7,197.65,15.52716265]
[1753110632666,37.37011085,197.7,197.64,15.52716265]
[1753110632865,15.52716265,197.66,197.6,15.52716265]
[1753110633321,32.31184662,197.64,197.58,15.72716265]
[1753110633488,16.78468397,197.64,197.59,15.52716265]
[1753110633785,32.31184662,197.64,197.58,15.72716265]
[1753110633966,5.05826423,197.7,197.63,15.52716265]
[1753110634173,16.78468397,197.67,197.59,0.7]
[1753110634490,4.3093,197.71,197.67,5.05893661]
[1753110634677,15.52716265,197.75,197.69,15.52716265]
[1753110634875,16.78468397,197.74,197.67,5.05893661]
[1753110635380,16.78468397,197.74,197.7,15.52716265]
[1753110635680,16.78468397,197.7,197.61,0.7]
[1753110635880,16.78468397,197.66,197.61,15.52716265]
[1753110636087,16.78468397,197.64,197.59,15.52716265]
[1753110636274,4.5176,197.63,197.58,0.2]
[1753110636585,32.31184662,197.59,197.58,0.2]
[1753110636973,37.37283148,197.59,197.58,0.2]
[1753110637188,37.73283148,197.59,197.58,0.2]
[1753110637497,37.73283148,197.59,197.55,0.3074322]
[1753110637498,32.31184662,197.56,197.55,0.3074322]
[1753110637875,5.42098486,197.59,197.55,0.3074322]
[1753110638070,15.52716265,197.56,197.55,0.3074322]
[1753110638271,15.52716265,197.56,197.54,0.03]
[1753110638476,32.67184662,197.55,197.54,0.03]
[1753110638671,32.67184662,197.55,197.52,0.2]
[1753110638672,16.78468397,197.54,197.52,0.2]
[1753110638892,32.31184662,197.53,197.52,0.2]
[1753110639071,32.67184662,197.53,197.52,0.2]
[1753110639773,16.78468397,197.52,197.5,0.03]
[1753110640005,32.31184662,197.51,197.5,0.03]
[1753110640172,16.78468397,197.51,197.5,0.03]
[1753110641007,16.78468397,197.51,197.5,15.55716265]
[1753110641300,23.51316265,197.62,197.5,16.25716265]
[1753110641483,7.986,197.62,197.57,15.52716265]
[1753110641679,16.78468397,197.6,197.55,15.52716265]
[1753110642010,16.78468397,197.58,197.53,16.22716265]
[1753110642171,32.31184662,197.58,197.52,15.52716265]
[1753110642368,32.31184662,197.56,197.5,16.25716265]
[1753110642583,16.78468397,197.54,197.5,0.03]
[1753110642792,7.986,197.62,197.53,15.52716265]
[1753110643013,16.78468397,197.6,197.56,15.52716265]
[1753110643307,23.51316265,197.62,197.5,0.03]
[1753110643308,7.986,197.62,197.57,15.52716265]
[1753110643604,7.986,197.62,197.54,0.7]
[1753110643605,4.1576,197.63,197.54,0.7]
[1753110643798,8.4497,197.69,197.61,15.52716265]
[1753110643980,8.4497,197.69,197.63,15.52716265]
[1753110644295,24.72762816,197.71,197.65,15.52716265]
[1753110644597,16.78468397,197.69,197.64,15.52716265]
[1753110644909,9.20046551,197.71,197.67,15.52716265]
[1753110644910,4.1425,197.71,197.67,15.52716265]
[1753110645086,29.03351996,197.76,197.69,15.52716265]
[1753110645281,4.1425,197.79,197.64,26.0]
[1753110645282,4.1425,197.79,197.7,0.7]
[1753110645596,19.66966265,197.79,197.72,15.52716265]
[1753110645788,19.66966265,197.79,197.65,26.50594485]
[1753110645789,4.1425,197.79,197.76,15.52716265]
[1753110645991,4.1425,197.79,197.73,0.7]
[1753110645992,15.52716265,197.79,197.73,16.22716265]
[1753110646294,0.06,197.8,197.76,15.52716265]
[1753110646492,0.06,197.8,197.77,15.52716265]
[1753110647192,16.84468397,197.8,197.75,0.7]
[1753110647396,0.06,197.8,197.78,15.52716265]
[1753110647791,0.06,197.8,197.79,15.52716265]
[1753110648192,0.06,197.8,197.79,16.22716265]
[1753110648503,12.99274112,197.9,196.85,5.09859233]
[1753110648504,15.52716265,197.81,197.78,10.0]
[1753110648712,15.52716265,197.81,197.79,10.0]
[1753110648920,15.52716265,197.82,197.78,10.0]
[1753110649206,2.6335976,197.91,197.74,0.7]
[1753110649207,15.52716265,197.79,197.74,50.82]
[1753110649381,15.52716265,197.79,197.75,10.0]
[1753110649582,42.94447531,197.93,197.81,10.0]
[1753110649809,15.52716265,197.87,197.81,10.0]
[1753110649993,15.52716265,197.88,197.83,10.0]
[1753110650185,15.52716265,197.87,197.81,10.0]
[1753110650391,16.78468397,197.85,197.81,10.0]
[1753110650790,37.36642226,197.85,197.81,10.0]
[1753110650989,37.36642226,197.85,197.8,10.0]
[1753110650990,15.52716265,197.84,197.8,10.0]
[1753110651191,37.36642226,197.85,197.81,10.0]
[1753110651386,15.52716265,197.82,197.79,10.0]
[1753110651589,15.52716265,197.82,197.69,13.1513713]
[1753110651590,16.78468397,197.79,197.77,10.0]
[1753110651895,16.78468397,197.77,197.73,50.74]
[1753110652081,15.52716265,197.74,197.73,10.0]
[1753110652488,15.52716265,197.74,197.71,10.0]
[1753110652686,20.58485975,197.72,197.71,10.0]
[1753110652915,16.78468397,197.71,197.69,10.0]
[1753110653230,37.36954372,197.72,197.65,7.9965987]
[1753110653231,16.78468397,197.69,197.65,7.9965987]
[1753110653388,16.78468397,197.69,197.67,10.0]
[1753110653595,16.78468397,197.7,197.67,10.0]
[1753110653802,16.78468397,197.7,197.65,48.7165987]
[1753110653803,32.31184662,197.7,197.65,48.7165987]
[1753110653994,15.52716265,197.69,197.67,10.0]
[1753110654200,15.52716265,197.69,197.65,7.9965987]
[1753110654406,15.52716265,197.69,197.67,10.0]
[1753110654407,32.31184662,197.69,197.67,10.0]
[1753110654596,15.52716265,197.68,197.65,7.9965987]
[1753110654795,37.37103917,197.66,197.65,7.9965987]
[1753110655707,37.37103917,197.66,197.56,10.0]
[1753110655708,16.78468397,197.65,197.56,10.0]
[1753110655898,16.78468397,197.59,197.53,15.52716265]
[1753110656107,17.70717393,197.66,197.52,10.0]
[1753110656108,16.78468397,197.57,197.52,25.52716265]
[1753110656307,15.52716265,197.6,197.54,15.52716265]
[1753110656607,16.78468397,197.6,197.57,10.0]
[1753110656907,15.52716265,197.6,197.58,10.0]
[1753110657207,15.52716265,197.6,197.53,0.7]
[1753110657208,16.78468397,197.58,197.57,10.0]
[1753110657411,32.31184662,197.58,197.5,25.55716265]
[1753110657607,16.78468397,197.53,197.5,0.03]
[1753110657811,16.78468397,197.54,197.53,10.0]
[1753110658197,16.78468397,197.61,197.58,10.0]
[1753110658603,17.70448681,197.69,197.54,10.0]
[1753110658604,32.31184662,197.59,197.54,10.0]
[1753110658804,16.78468397,197.55,197.54,10.0]